Workbook

Sheet NSU
B1: Oona Vahvelainen | E1: 22.7.1998 Helsinki
B2: SUPERPESIS | E2: Runkosarja | I2: Kärkilyönnit (KL), pesänvälit | P2: Ylempi loppusarja | U2: Alempi loppusarja | AB2: Arvo-ottelut ja mitalit
B3: Vuosi | C3: Sija | D3: Seura | E3: OTT | F3: KUN | G3: LÖI | H3: TOI | I3: KL | J3: 0 > 1 | K3: 1 > 2 | L3: 2 > 3 | M3: 3 > k | N3: KL-% | P3: OTT | Q3: KUN | R3: LÖI | S3: TOI | T3: KL | U3: OTT | V3: KUN | W3: LÖI | X3: TOI | Y3: KL | Z3: IL | AA3: LL | AB3: Halli | AC3: K | AD3: H | AE3: P
B4: 2013 | D4: Tahko | F4: suomensarja
B5: 2014 | D5: Tahko | F5: suomensarja
B6: 2015 | D6: Tahko | F6: ykköspesis
B7: 2016 | D7: Tahko | F7: ykköspesis
B8: 2017 | D8: Tahko | F8: ykköspesis
B9: 2018 | C9: 10. | D9: Tahko | E9: 26 | F9: 0 | G9: 3 | H9: 4 | I9: 57 | J9: 39 | K9: 12 | L9: 3 | M9: 3 | N9: 44.5 % | O9: 128
B10: 2019 | C10: 6. | D10: Tahko | E10: 24 | F10: 0 | G10: 9 | H10: 8 | I10: 49 | J10: 25 | K10: 9 | L10: 6 | M10: 9 | N10: 40.2 % | O10: 122 | P10: 3 | Q10: 0 | R10: 0 | S10: 2 | T10: 4
B11: 2020 | C11: 5. | D11: Tahko | E11: 20 | F11: 1 | G11: 9 | H11: 8 | I11: 42 | J11: 12 | K11: 8 | L11: 12 | M11: 10 | N11: 52.5 % | O11: 80 | P11: 2 | Q11: 0 | R11: 0 | S11: 1 | T11: 3
B12: 2021 | C12: 6. | D12: Tahko | E12: 24 | F12: 2 | G12: 11 | H12: 7 | I12: 45 | J12: 12 | K12: 10 | L12: 10 | M12: 13 | N12: 45.5 % | O12: 99 | P12: 4 | Q12: 0 | R12: 1 | S12: 0 | T12: 3
B13: 2022 | C13: 8. | D13: Tahko | E13: 24 | F13: 0 | G13: 9 | H13: 1 | I13: 23 | J13: 5 | K13: 4 | L13: 5 | M13: 9 | N13: 34.9 % | O13: 66 | P13: 3 | Q13: 0 | R13: 2 | S13: 0 | T13: 6
B14: Yhteensä | E14: =SUM(E4:E13) -> 118 | F14: 3 | G14: 41 | H14: 28 | I14: 216 | J14: 93 | K14: 43 | L14: 36 | M14: 44 | N14: =PRODUCT(I14/O14) -> 43.6 % | O14: =SUM(O4:O13) -> 495 | P14: 12 | Q14: 0 | R14: 3 | S14: 3 | T14: 16 | U14: 0 | V14: 0 | W14: 0 | X14: 0 | Y14: 0 | Z14: 0 | AA14: 0 | AB14: 0 | AC14: 0 | AD14: 0 | AE14: 0
B15: Pesispörssi | D15: =SUM(F14:H14)+((I14-F14-G14)/3)+(E14/3)+(Z14*25)+(AA14*25)+(AB14*10)+(AC14*25)+(AD14*20)+(AE14*15) -> 168.7
B17: URA SUPERISSA | E17: OTT | F17: KUN | G17: LÖI | H17: TOI | I17: KL | K17: ka/L | L17: ka/T | M17: ka/KL | N17: K - % | P17: ENSIMMÄISET
B18: Runkosarja | E18: =PRODUCT(E14) -> 118 | F18: =PRODUCT(F14) -> 3 | G18: =PRODUCT(G14) -> 41 | H18: =PRODUCT(H14) -> 28 | I18: =PRODUCT(I14) -> 216 | K18: =PRODUCT((F18+G18)/E18) -> 0.37 | L18: =PRODUCT(H18/E18) -> 0.24 | M18: =PRODUCT(I18/E18) -> 1.83 | N18: =PRODUCT(N14) -> 43.6 % | O18: =PRODUCT(O14) -> 495 | P18: Ottelu | R18: 09.05. 2018 Tahko - Pesäkarhut 0-2 (3-10, 0-3) | AA18: 1. ottelu | AC18: 19 v 9 kk 17 pv
B19: Ylempi loppusarja | E19: =PRODUCT(P14) -> 12 | F19: =PRODUCT(Q14) -> 0 | G19: =PRODUCT(R14) -> 3 | H19: =PRODUCT(S14) -> 3 | I19: =PRODUCT(T14) -> 16 | K19: =PRODUCT((F19+G19)/E19) -> 0.25 | L19: =PRODUCT(H19/E19) -> 0.25 | M19: =PRODUCT(I19/E19) -> 1.33 | N19: =PRODUCT(I19/O19) -> 40.0 % | O19: 40 | P19: Lyöty | R19: 15.07. 2018 Tahko - SMJ 0-1 (2-2, 4-7) | AA19: 17. ottelu | AC19: 19 v 11 kk 23 pv
B20: Alempi loppusarja | O20: 0 | P20: Tuotu | R20: 27.05. 2018 SMJ - Tahko 1-0 (2-1, 1-1) | AA20: 5. ottelu | AC20: 19 v 10 kk 5 pv
B21: KAIKKI | E21: =SUM(E18:E20) -> 130 | F21: =SUM(F18:F20) -> 3 | G21: =SUM(G18:G20) -> 44 | H21: =SUM(H18:H20) -> 31 | I21: =SUM(I18:I20) -> 232 | K21: =PRODUCT((F21+G21)/E21) -> 0.36 | L21: =PRODUCT(H21/E21) -> 0.24 | M21: =PRODUCT(I21/E21) -> 1.78 | N21: =PRODUCT(I21/O21) -> 43.4 % | O21: =SUM(O18:O20) -> 535 | P21: Kunnari | R21: 21.08. 2020 Tahko - Pesä Ysit 2-0 (11-0, 14-3) | AA21: 72. ottelu | AC21: 22 v 0 kk 30 pv
B23: Seurat | D23: Tahko = Hyvinkään Tahko (1915), kasvattajaseura
